Cogmind - Beta 9.3 @@@ ROGUE MODE // 2019.12.17 @ 21:40:13 // Winter2019/RPGLIKE Player: Terminus Result: Destroyed by 8R-AWN with 8R-AWN's Boregun Performance ------------- Evolutions (1) 500 Regions Visited (5) 1000 Robots Destroyed (92) 460 Value Destroyed (2182) 2182 Prototype IDs (25) 500 Alien Tech Used (0) 0 Bonus (-11) -11 TOTAL SCORE: 4631 Bonus ------- High Alert Combat Kills 596 Follower Combat Kills 91 Aligned with FarCom 300 Friendly Fire -998 Cogmind --------- Core Integrity 0/800 Matter 216/300 Energy 2380/2380 System Corruption 1% Temperature Cool (0) Movement Flying (29) Location -9/Exiles Parts ------- > --- POWER (1) -------- Heavy Ion Engine > --- PROPULSION (3) --- Improved Flight Unit Improved Flight Unit Improved Flight Unit > --- UTILITY (7) ------ Improved Heat Sink Improved Heat Sink Small Battery Superbattery Targeting Computer Targeting Computer Hacking Suite > --- WEAPON (3) ------- Improved EM Shotgun Improved EM Shotgun Katana > --- INVENTORY (5) ---- Improved EM Shotgun Improved EM Shotgun Bore Cannon Rocket Launcher Plasma Cutter Peak State ------------ > --- POWER ------------ Heavy Ion Engine > --- PROPULSION ------- Improved Flight Unit Improved Flight Unit Improved Flight Unit > --- UTILITY ---------- Improved Heat Sink Improved Heat Sink Small Battery Superbattery Targeting Computer Targeting Computer Hacking Suite > --- WEAPON ----------- Improved EM Shotgun Improved EM Shotgun Improved EM Shotgun > --- INVENTORY -------- Improved EM Shotgun Bore Cannon Rocket Launcher Plasma Cutter Katana [Rating: 44] Favorites ----------- Power Heavy Ion Engine Engine Heavy Ion Engine Propulsion Improved Flight Unit Flight Unit Improved Flight Unit Utility Improved Heat Sink Device Improved Heat Sink Storage Small Battery Processor Targeting Computer Hackware Hacking Suite Protection Light Armor Plating Weapon Improved EM Shotgun Energy Gun Improved EM Shotgun Ballistic Gun Assault Rifle Launcher Grenade Launcher Special Weapon Plasma Cutter Slashing Weapon Katana Build | -11 -10 -10 -9 -9 -9 ------- Run | Scr Mat Min Mat Min Exi Slots Evolved 10 | 4 2 1 3 . . Power . | . . . . . . Propulsion 2 | 1 . 1 . . . Utility 6 | 2 2 . 2 . . Weapon 2 | 1 . . 1 . . Parts Attached 40 | 3 11 4 16 . 6 Power 2 | 1 . . 1 . . Engine 2 | 1 . . 1 . . Core . | . . . . . . Reactor . | . . . . . . Propulsion 8 | . 3 1 4 . . Treads . | . . . . . . Leg . | . . . . . . Wheel . | . . . . . . Hover . | . . . . . . Flight 8 | . 3 1 4 . . Utility 13 | . 4 3 5 . 1 Device 4 | . 3 1 . . . Storage 3 | . . . 2 . 1 Processor 3 | . . 2 1 . . Hackware 1 | . . . 1 . . Protection 2 | . 1 . 1 . . Artifact . | . . . . . . Weapon 17 | 2 4 . 6 . 5 Energy Gun 9 | 1 2 . 5 . 1 Energy Cannon . | . . . . . . Ballistic Gun 2 | 1 1 . . . . Ballistic Cannon . | . . . . . . Launcher 3 | . 1 . 1 . 1 Special Weapon 1 | . . . . . 1 Impact Weapon . | . . . . . . Slashing Weapon 2 | . . . . . 2 Piercing Weapon . | . . . . . . Special Melee Weapon . | . . . . . . Unidentified Prototypes 3 | . . . 3 . . Parts Lost . | . . . . . . Power . | . . . . . . Propulsion . | . . . . . . Utility . | . . . . . . Weapon . | . . . . . . Highest Loss Streak . | . . . . . . Average Slot Usage (%) 90 | . 74 88 97 92 99 Engine 8 | . 11 9 7 7 7 Flight 21 | . 20 21 22 21 21 Device 16 | . 19 19 14 14 14 Storage 3 | . . . 3 7 13 Processor 11 | . . 8 19 14 14 Hackware 2 | . . . 2 7 7 Protection 3 | . . 9 3 . . Energy Gun 18 | . 12 19 20 21 18 Ballistic Gun 1 | . 7 . . . . Naked Turns . | . . . . . . Heaviest Build 25 | 8 16 16 23 20 25 Greatest Support 28 | 13 18 22 28 28 28 Greatest Overweight (x) . | . . . . . . Average Overweight (x) . | . . . . . . Largest Inventory Capacity 5 | 1 2 2 4 5 5 Average Capacity 2 | . 1 2 3 4 5 Most Carried 5 | 1 2 2 4 5 5 Average Carried 2 | . 1 2 3 4 5 Final Capacity 5 | 1 2 2 4 5 5 Final Carried 5 | . 2 2 4 5 5 Class Distribution -------------------- 55% | Sprinter 36% | Mutant 6% | Scavenger-Mutant Dominant Class ---------------- Mutant | -10/Materials Mutant | -10/Mines Sprinter | -9/Materials Sprinter | -9/Mines Sprinter | -9/Exiles Resources | -11 -10 -10 -9 -9 -9 ----------- Run | Scr Mat Min Mat Min Exi Matter Collected 845 | 230 243 181 171 . 20 Remotely . | . . . . . . Salvage Created 2694 | . 623 211 1808 . 52 Parts 199 | . 51 12 126 . 10 Haulers Intercepted 8 | . 2 . 6 . . Recyclers Shooed 1 | . . . 1 . . Parts Field Recycled . | . . . . . . Retrieved Matter . | . . . . . . Parts Self-Destructed . | . . . . . . Prevented . | . . . . . . Kills | -11 -10 -10 -9 -9 -9 ------- Run | Scr Mat Min Mat Min Exi Combat Hostiles Destroyed 68 | . 21 6 34 . 7 Guns 43 | . 8 6 29 . . AOE 24 | . 13 . 4 . 7 Classes Destroyed 12 | . 7 . 4 . 1 Worker 2 | . 1 . 1 . . Builder 1 | . 1 . . . . Hauler 8 | . 2 . 6 . . Recycler 2 | . 2 . . . . Operator 4 | . . . 4 . . Watcher 6 | . 1 . 5 . . Swarmer 14 | . 9 . 5 . . Grunt 35 | . 12 6 17 . . Brawler 1 | . . . 1 . . Duelist 2 | . . . 2 . . Sentry 9 | . . . 9 . . Assembled 7 | . . . . . 7 Best Kill Streak 12 | . 12 2 9 . 7 Combat Bots Only 9 | . 9 2 8 . 7 Max Kills in Single Turn 4 | . 2 1 4 . 4 Gunslinging . | . . . . . . Exploded 4 | . 2 . 3 . 4 Melee . | . . . . . . Uniques/NPCs Destroyed 1 | . . . . . 1 EX-BIN (-9/Exiles) Combat | -11 -10 -10 -9 -9 -9 -------- Run | Scr Mat Min Mat Min Exi Damage Taken 2310 | . 205 128 1007 . 970 Core 1910 | . 175 97 823 . 815 Absorbed by Shields . | . . . . . . Redirected to Core 1333 | . 101 97 600 . 535 Core Remaining (%) 100 | 100 . 100 . . . Volleys Fired 198 | . 51 14 97 . 36 Largest 3 | . 2 2 3 . 3 Hottest 135 | . 90 90 135 . 135 Shots Fired 438 | . 81 28 257 . 72 Gun 400 | . 62 28 256 . 54 Cannon . | . . . . . . Launcher 24 | . 19 . 1 . 4 Special 14 | . . . . . 14 Kinetic 28 | . 28 . . . . Thermal 24 | . 10 . . . 14 Explosive 24 | . 19 . 1 . 4 Electromagnetic 362 | . 24 28 256 . 54 Robot Hit Streak 27 | . 8 14 27 . 25 Robot Miss Streak 6 | . 5 2 6 . 2 Penetration Max . | . . . . . . Secondary Targets 10 | . 1 . 9 . . Max Gunslinging Chain 1 | . 1 . 1 . . Shots Hit Robots 349 | . 44 25 198 . 82 Core Hits 186 | . 46 15 100 . 25 Critical Hits 4 | . . . 2 . 2 Critical Kills . | . . . . . . Critical Parts Destroyed 2 | . . . 1 . 1 Melee Attacks 23 | . . . . . 23 Impact . | . . . . . . Slashing 23 | . . . . . 23 Piercing . | . . . . . . Sneak Attacks 1 | . . . . . 1 Combat Hostiles . | . . . . . . Follow-up Attacks . | . . . . . . Damage Inflicted 6142 | . 1558 355 3110 . 1119 Guns 3494 | . 501 355 2602 . 36 Cannons . | . . . . . . Explosions 2018 | . 1057 . 508 . 453 Melee 617 | . . . . . 617 Ramming . | . . . . . . Kinetic 175 | . 175 . . . . Thermal 594 | . 67 . 508 . 19 Explosive 1479 | . 1032 . . . 447 Electromagnetic 3277 | . 284 355 2602 . 36 Impact . | . . . . . . Slashing 617 | . . . . . 617 Piercing . | . . . . . . Highest Corruption 1 | . . . 1 1 1 Average Corruption 1 | . . . 1 1 1 Corruption Purged . | . . . . . . Effects 7 | . . . 4 . 3 Message Errors 2 | . . . 1 . 1 Energy Discharges 1 | . . . . . 1 Data Loss (minor) 1 | . . . 1 . . Targeting Errors 3 | . . . 2 . 1 Overload Shots . | . . . . . . Overflow Damage 96 | . 74 . 19 . 3 Projectiles . | . . . . . . Explosions 93 | . 74 . 19 . . Melee 3 | . . . . . 3 Knockbacks . | . . . . . . Impact . | . . . . . . Kinetic . | . . . . . . Secondary . | . . . . . . Self-Inflicted Damage 229 | . . . 160 . 69 Shots 7 | . . . 5 . 2 Rammed . | . . . . . . Targets Rammed . | . . . . . . Kicked . | . . . . . . Crushed . | . . . . . . Highest Temperature 17 | . . . 17 . 1 Average Temperature 5 | . . . 5 . 1 Received Heat Transfer 417 | . 90 75 252 . . Siege Activations . | . . . . . . Robots Corrupted 2 | . . . 2 . . Combat Hostiles 1 | . . . 1 . . Parts Fried 18 | . 1 . 17 . . Impact Corruptions . | . . . . . . Robots Melted . | . . . . . . Combat Hostiles . | . . . . . . Parts Melted 1 | . . . 1 . . Heat Transferred 1079 | . 150 . 800 . 129 Parts Sabotaged . | . . . . . . Parts Stolen . | . . . . . . Parts Stripped . | . . . . . . Power Chain Reactions 10 | . 1 . 8 . 1 Missiles Intercepted . | . . . . . . Alert | -11 -10 -10 -9 -9 -9 ------- Run | Scr Mat Min Mat Min Exi Peak Influence 1212 | . 632 263 1212 472 . Average Influence 485 | . 296 175 723 472 . Maximum Alert Level 4 | . 2 1 4 2 . Low Security (%) 26 | 100 40 62 5 . . Level 1 23 | . 31 37 16 . . Level 2 20 | . 27 . 16 100 . Level 3 26 | . . . 55 . . Level 4 3 | . . . 7 . . Level 5 . | . . . . . . High Security . | . . . . . . Max Security . | . . . . . . Squads Dispatched 12 | . 4 . 8 . . Investigation 6 | . 4 . 2 . . Extermination . | . . . . . . Reinforcement 2 | . . . 2 . . Assault 4 | . . . 4 . . Garrison . | . . . . . . Intercept . | . . . . . . Construction Impeded . | . . . . . . Haulers Reinforced . | . . . . . . Stealth | -11 -10 -10 -9 -9 -9 --------- Run | Scr Mat Min Mat Min Exi Distress Signals 3 | . 1 . 2 . . Communications Jammed . | . . . . . . Distress Signals . | . . . . . . Times Spotted 95 | . 24 6 61 . 4 Peak Tracking Total 10 | . 6 2 10 . 9 Tactical Retreats 5 | . 1 . 4 . . Traps | -11 -10 -10 -9 -9 -9 ------- Run | Scr Mat Min Mat Min Exi Traps Triggered 1 | . . . 1 . . Indirectly . | . . . . . . Trap Hack Attempts . | . . . . . . Triggered . | . . . . . . Disarmed . | . . . . . . Reprogrammed . | . . . . . . Reused . | . . . . . . Traps Extracted . | . . . . . . Installed . | . . . . . . Triggered . | . . . . . . Machines | -11 -10 -10 -9 -9 -9 ---------- Run | Scr Mat Min Mat Min Exi Machines Disabled 11 | . 4 . 5 . 2 Max in Single Turn 2 | . 2 . 2 . 1 Machines Sabotaged . | . . . . . . Garrisons Compromised . | . . . . . . Overloaded Fab Kills . | . . . . . . Fab Network Shutdowns . | . . . . . . Hacking | -11 -10 -10 -9 -9 -9 --------- Run | Scr Mat Min Mat Min Exi Machines Accessed 18 | . 9 . 7 . 2 Terminals 13 | . 7 . 6 . . Fabricators . | . . . . . . Repair Stations . | . . . . . . Recycling Units 3 | . 2 . 1 . . Scanalyzers . | . . . . . . Garrison Access . | . . . . . . Total Hacks 56 | . 32 . 19 . 5 Successful 37 | . 21 . 11 . 5 Failed 19 | . 11 . 8 . . Catastrophic . | . . . . . . Database Lockouts . | . . . . . . Manual 48 | . 31 . 16 . 1 Terminals 46 | . 29 . 17 . . Fabricators . | . . . . . . Repair Stations . | . . . . . . Recycling Units 5 | . 3 . 2 . . Scanalyzers . | . . . . . . Garrison Access . | . . . . . . Terminal Hacks 20 | . 11 . 4 . 5 Record 4 | . . . . . 4 Alert Level 5 | . 5 . . . . Unreport Threat 2 | . 2 . . . . Hauler Manifests 2 | . 1 . 1 . . Zone Layout 6 | . 3 . 3 . . EX-Prototype ID Bank 1 | . . . . . 1 Fabricator Hacks . | . . . . . . Repair Station Hacks . | . . . . . . Recycling Unit Hacks 2 | . 1 . 1 . . Retrieve Components 2 | . 1 . 1 . . Scanalyzer . | . . . . . . Garrison Access Hacks . | . . . . . . Unauthorized Hacks 38 | . 22 . 16 . . Terminals 12 | . 7 . 5 . . Track 1 | . 1 . . . . Assimilate 2 | . 1 . 1 . . Botnet 8 | . 4 . 4 . . Operators 1 | . 1 . . . . Fabricators . | . . . . . . Repair Stations . | . . . . . . Recycling Units 3 | . 2 . 1 . . Tunnel 3 | . 2 . 1 . . Scanalyzers . | . . . . . . Garrison Access . | . . . . . . Data Cores Recovered . | . . . . . . Used . | . . . . . . Hacking Detections 11 | . 6 . 5 . . Full Trace Events 6 | . 4 . 2 . . Feedback Events . | . . . . . . Feedback Blocked . | . . . . . . Robot Schematics Acquired . | . . . . . . Robots Built . | . . . . . . Matter . | . . . . . . Time . | . . . . . . Total Robot Build Rating . | . . . . . . Part Schematics Acquired . | . . . . . . Parts Built . | . . . . . . Matter . | . . . . . . Time . | . . . . . . Total Part Build Rating . | . . . . . . Parts Repaired . | . . . . . . Time . | . . . . . . Parts Recycled . | . . . . . . Recycled Matter . | . . . . . . Retrieved Matter . | . . . . . . Retrieved Components 11 | . 2 . 9 . . Parts Scanalyzed . | . . . . . . Part Schematics Acquired . | . . . . . . Parts Damaged . | . . . . . . Bothacking | -11 -10 -10 -9 -9 -9 ------------ Run | Scr Mat Min Mat Min Exi Used RIF Installer . | . . . . . . Robots Hacked . | . . . . . . Non-combat . | . . . . . . Combat . | . . . . . . Robot Hacks Applied . | . . . . . . Relay Couplers Released . | . . . . . . Robots Rewired . | . . . . . . Allies Hacked . | . . . . . . Hacks Repelled . | . . . . . . Allies | -11 -10 -10 -9 -9 -9 -------- Run | Scr Mat Min Mat Min Exi Total Allies 4 | . . 3 1 . . Largest Group 3 | . . 3 3 . . Highest-Rated Group 42 | . . 40 42 . . Highest-Rated Ally 16 | . . 16 16 . . Total Orders . | . . . . . . Ally Attacks 46 | . . 3 43 . . Total Damage 413 | . . 33 380 . . Kills 9 | . . 1 8 . . Allies Corrupted . | . . . . . . Allies Melted . | . . . . . . Intel | -11 -10 -10 -9 -9 -9 ------- Run | Scr Mat Min Mat Min Exi Robot Analysis Total . | . . . . . . Derelict Logs Recovered 3 | . . 2 . 1 . Drone Launches . | . . . . . . Drone Recoveries . | . . . . . . Exploration | -11 -10 -10 -9 -9 -9 ------------- Run | Scr Mat Min Mat Min Exi Turns Passed 2282 | 28 549 330 929 86 360 Spaces Moved 3052 | 32 710 398 1342 280 290 Core 59 | 32 27 . . . . Treads . | . . . . . . Legs . | . . . . . . Wheels . | . . . . . . Hover . | . . . . . . Flight 2993 | . 683 398 1342 280 290 Fastest Speed 29 | 50 37 34 29 29 29 Average Speed 32 | 50 37 36 29 29 29 Slowest Speed 50 | 50 50 37 34 29 29 Overloaded Moves . | . . . . . . Propulsion Burnouts . | . . . . . . Robots Hopped 35 | . 9 4 21 1 . Cave-ins Triggered . | . . . . . . Exploration Rate (%) 62 | 3 98 75 94 53 51 Regions Visited 5 Branch Regions 3 Pre-discovered Areas 5 | . 2 1 1 . 1 Known Exits Taken 1 | . . . 1 . . Unknown Exits Taken 4 | 1 1 1 . 1 . Scrap Searched 4 | . . 3 . 1 . Spaces Dug 15 | . 5 . 10 . . Terrain Destroyed 103 | . 49 . 38 . 16 Melee . | . . . . . . Projectile . | . . . . . . AOE 103 | . 49 . 38 . 16 Actions | -11 -10 -10 -9 -9 -9 --------- Run | Scr Mat Min Mat Min Exi Total 3871 | 42 900 546 1644 283 456 Wait 494 | 7 117 125 142 2 101 Move 2982 | 31 693 389 1302 277 290 Hop 30 | . 7 4 18 1 . Pick Up 10 | 1 3 . 4 2 . Fast Attach 28 | 2 9 4 12 . 1 Attach 2 | 1 . . 1 . . Detach . | . . . . . . Swap 10 | . 2 . 3 . 5 Drop 21 | . 6 1 13 1 . Fire 198 | . 51 14 97 . 36 Melee 23 | . . . . . 23 Ram . | . . . . . . Kick . | . . . . . . Crush . | . . . . . . Escape Stasis . | . . . . . . Rewire . | . . . . . . Trap . | . . . . . . Miscellaneous 73 | . 12 9 52 . . Route ------- -11/Scrapyard -10/Materials (discovered 5 exits: *Mat x3 / [*Min x2]) -10/Mines -9/Materials (discovered 5 exits: *Mat x3 / *Min x2) -9/Mines (discovered 3 exits: *Mat x2 / *Exi) -9/Exiles History --------- Turn | Location | Event 4 | -11/Scrapyard | Upgraded with Propulsion slot (x1) 4 | -11/Scrapyard | Upgraded with Utility slot (x2) 4 | -11/Scrapyard | Upgraded with Weapon slot (x1) 10 | -11/Scrapyard | Discovered new exit (range 15) 29 | -11/Scrapyard | Entered Materials 149 | -10/Materials | Discovered new exit (range 7) 187 | -10/Materials | Reached level 2 199 | -10/Materials | Upgraded with Utility slot (x1) 214 | -10/Materials | Discovered new exit (range 15) 239 | -10/Materials | Destroyed 9 combat bots 277 | -10/Materials | Discovered new exit (range 13) 299 | -10/Materials | Discovered new exit (range 15) 493 | -10/Materials | Reached level 3 516 | -10/Materials | Upgraded with Utility slot (x1) 539 | -10/Materials | Discovered new exit (range 8) 549 | -10/Materials | Build established: Mutant 578 | -10/Materials | Entered Mines 579 | -10/Mines | Learned location of Storage (-7) 603 | -10/Mines | Learned 4 Materials zone layouts 640 | -10/Mines | Assisted by bots powering up and referring to "LRC-V3" 658 | -10/Mines | Excavation squad dispatched 658 | -10/Mines | A large section of the Mines collapsed 823 | -10/Mines | Discovered new exit (range 7) 840 | -10/Mines | Reached level 4 847 | -10/Mines | Upgraded with Propulsion slot (x1) 908 | -10/Mines | Entered Materials 908 | -9/Materials | Accompanied by 3 allies 909 | -9/Materials | Identified exit to Mines 910 | -9/Materials | Identified exit to Materials 910 | -9/Materials | Reached level 5 910 | -9/Materials | Upgraded with Utility slot (x1) 1116 | -9/Materials | Reached level 6 1119 | -9/Materials | Upgraded with Weapon slot (x1) 1176 | -9/Materials | Discovered exit to Materials (range 16) 1268 | -9/Materials | Build established: Sprinter 1290 | -9/Materials | Discovered exit to Materials (range 5) 1306 | -9/Materials | Reached level 7 1308 | -9/Materials | First assault squad dispatched 1593 | -9/Materials | Reached level 8 1596 | -9/Materials | Upgraded with Utility slot (x1) 1833 | -9/Materials | Destroyed 8 combat bots 1837 | -9/Materials | Entered Mines 1839 | -9/Mines | Reached level 9 1862 | -9/Mines | Discovered exit to Materials (range 13) 1866 | -9/Mines | Learned Materials emergency access door positions 1872 | -9/Mines | Discovered exit to Materials (range 10) 1872 | -9/Mines | A weapon hastily lodged in a ceiling crevice suddenly fell to the ground 1922 | -9/Mines | Deemed a non-threat by the Exiles lab entrance 1922 | -9/Mines | Discovered new exit (range 5) 1923 | -9/Mines | Entered Exiles 1931 | -9/Exiles | Met 8R-AWN 1935 | -9/Exiles | Met EX-HEX 1945 | -9/Exiles | Met EX-BIN 1948 | -9/Exiles | Aligned with FarCom system 1948 | -9/Exiles | Given EX-Vault access code 1956 | -9/Exiles | Opened EX-Vault 1958 | -9/Exiles | Found Superbattery 2012 | -9/Exiles | Warned to stay clear of 0b10 Research branches 2026 | -9/Exiles | Met EX-DEC 2027 | -9/Exiles | Learned location of Zion (-6) 2044 | -9/Exiles | Destroyed EX-BIN 2045 | -9/Exiles | Attacked by the Exiles 2081 | -9/Exiles | Destroyed 7 combat bots 2152 | -9/Exiles | Core integrity fell below 50% 2258 | -9/Exiles | Core integrity fell below 20% 2283 | -9/Exiles | Destroyed by 8R-AWN with 8R-AWN's Boregun Last Messages --------------- 02205_ 9RMCUY 01CS6=FN/ BB/CD7W&ZE4I&Y#EHFJ 02224_ 8R-AWN suffers critical hit. 02224_ Destroyed Prototype Device. 02227_ Penetrated by HV Slug. 02235_ HV Slug penetrates Wall. 02235_ Penetrated by HV Slug. 02235_ HV Slug penetrates Wall. 02240_ Penetrated by HV Slug. 02248_ Destroyed Prototype Protection. 02248_ Penetrated by HV Slug. 02248_ HV Slug penetrates Wall. 02251_ Destroyed Prototype Device. 02253_ HV Slug penetrates Wall. 02253_ Machine disabled. 02253_ HV Slug penetrates Wall. 02257_ Penetrated by HV Slug. 02261_ HV Slug penetrates Wall. 02261_ Penetrated by HV Slug. 02270_ HV Slug penetrates Wall. 02274_ Penetrated by HV Slug. Map ----- +----------------------------------------------------+ | | | | | | | | | | | | | ??????????????????????#########??????????????????? | | ??????????????????????# ! #??????????????????? | | ??????????????????????# [ #??????????????????? | | ??????????????????????# #??????????????????? | | ??????????????????????# X#??????????????????? | | ??????????????????????## ##??????????????????? | | ??????????????????????#X #???????????????????? | | ??????????? ??????????## #???????????????????? | | ???????????? ??????????# #???????????????????? | | ????????????# #????????# #???####????????????? | | ?????????????# #???????# #??"""""#???????????? | | ??????????????# #???#### ## """#???????????? | | ???????????????# #??# ## X""#???????????? | | ????????????????# ### # ## """#???????????? | | ????????????????##;#;;;# #??"""""#???????????? | | ???????????????#""" ;# #???####????????????? | | ???????????????#"""" ;; #???????????????????? | | ???????????????#""X" #???????????????????? | | ???????????????#" g #???????????????????? | | ???????????????#" #; @ #???????????????????? | | ???????????????#""""" ;; ###########?????????? | | ???????????????##"####;# ;##"""""""#?????????? | | ??????????????? ????#?# ;##"""""""#?????????? | | ??????????????""???????# ;##"""""""#?????????? | | ??????????????????????## ;##"" """"#?????????? | | ??????????????????????# """"#?????????? | | ??????????????????????#" !!"""#?????????? | | ??????????????????????#" !*!"""#?????????? | | ??????????????????????#" !!%"""#?????????? | | ?????????####?????????#" !!"""#?????????? | | ????????? """????????#" !"""#?????????? | | ?????????" """#???????## """""????????? | | ?????????" #????????# """##????????? | | ????????"" #????????#" "X" """"?????????? | | ????????"" "#????????#" """ #?????????? | | ???????? ""?????????#" """"""""#?????????? | | ?????????" "?????????##" # #########?????????? | | ?????????# #????????##"" #?????????????????? | | ???????### ###?######"" ##?????????????????? | | """#####X# #"###""""""" ##??????????????????? | | """""" " "" ##????########?????? | | "" """ " #####"""""""""????? | | " " " """ """"#??? | | "" " #?? | +----------------------------------------------------+ Best States ------------- Heat Dissipation 65 Energy Generation 19 Energy Capacity 2380 Matter Stores 300 Matter Capacity 300 Sight Range 16 Terrain Scan Density 10 Armor Coverage 150 Core Shielding 20 Evasion (%) 64 Targeting Accuracy 10 Offensive Hacking 10 Item Schematics ----------------- None Robot Schematics ------------------ None Fabricated ------------ Nothing Alien Tech Used ----------------- None Achievements -------------- None Challenges ------------ None RPGLIKE | -11 -10 -10 -9 -9 -9 --------- Run | Scr Mat Min Mat Min Exi Levels Raised 8 | . 2 1 4 1 . XP Earned 15361 | 3000 3188 1397 7258 349 169 XP Spent 14730 | 2970 3000 800 6710 1250 . Upgrades 24 | 9 3 1 10 1 . Propulsion Slot 2 | 1 . 1 . . . Utility Slot 6 | 2 2 . 2 . . Weapon Slot 2 | 1 . . 1 . . Core Integrity 4 | . . . 4 . . Heat Dissipation 2 | 2 . . . . . Energy Generation 1 | . . . 1 . . Mass Support 2 | 2 . . . . . Inventory Capacity 5 | 1 1 . 2 1 . Protomatter Created 890 | . 178 149 553 . 10 Integrity Restored 1353 | . 215 149 989 . . Core 1095 | . 175 97 823 . . Parts 258 | . 40 52 166 . . Protomatter Decayed 556 | . 80 111 365 . . Game ------ Seed SurveybotComponentLaser Manual? 0 Play Time 00:29:26 Cumulative 972.0 hours Start 2019.12.17 @ 21:14:06 End 2019.12.17 @ 21:40:13 Sessions 1 Manual Loads 0 Difficulty Rogue Special Mode Winter2019/RPGLIKE Game No. 313 Rogue 313 Adventurer 0 Explorer 0 Win Type - Total 70 Types 14/6/32/3/1/2/12 Lore% 97 Gallery% 95 Achievement% 82 Wizard Run 0 Options --------- ASCII 0 Keyboard 0 Movement Numpad Keybinds 0 Fullscreen 1 Font 18/SmallcapsGlow Map View 76x50 Tactical HUD 1 Map Filters NONE Filters NONE Steam 1 RUN: 4a49b978-b96d-454c-a704-df4dcf17202c